[Event "39th OBSenEM 2023"]
[Site "Berlin"]
[Date "2023.01.30"]
[Round "7.4"]
[White "Wolf, Christian"]
[Black "Daverkausen, Bernd"]
[Result "0-1"]
[ECO "B22"]
[WhiteElo "2174"]
[BlackElo "2120"]
[Annotator "TA"]
[PlyCount "122"]
[EventDate "2023.01.24"]
[EventType "swiss"]
[EventCountry "GER"]
[SourceTitle "playchess.com"]
[Source "ChessBase"]
[SourceQuality "1"]
[TimeControl "40/5400+30:1800+30"]

{[%evp 18,122,29,25,95,8,17,14,12,-20,-11,-54,-55,-46,-52,-51,-36,-71,-7,-47,-12,-7,0,-43,-43,-54,-52,-66,-68,-89,-89,-99,-91,-93,-77,-68,-72,-87,-66,-103,-94,-69,-69,-75,-29,-41,-51,-93,-92,-140,-137,-142,-145,-229,-101,-200,-239,-207,-188,-408,-404,-505,-457,-416,-143,-271,-143,-143,-143,-143,-143,-143,-143,-143,-143,-143,-143,-143,-143,-143,-143,-143,-143,-143,-143,-143,-143,-143,-143,-143,-143,-143,-143,-143,-143,-143,-143,-143,-143,-143,-143,-143,-143,-29978,-29979,-29978,-143]} 1. e4 {[%emt 0:00:07][%cal Be2e4,Be4e5][%mdl 32]} c5 {[%emt 0:00:09]} 2. c3 {[%emt 0:00:21]} Nf6 {[%emt 0:00:14]} 3. e5 {[%emt 0:00:18]} Nd5 {[%emt 0:00:10]} 4. d4 {[%emt 0:00:18]} cxd4 {[%emt 0:00:09]} 5. cxd4 {[%emt 0:00:09]} d6 {[%emt 0:00:15]} 6. Nf3 {[%emt 0:00:22]} Nc6 {[%emt 0:00:10]} 7. Bc4 {[%emt 0:00:32]} Nb6 {[%emt 0:00:10]} 8. Bb5 {[%emt 0:00:28]} Bd7 {[%emt 0:00:13]} 9. Nc3 {[%emt 0:00:50]} e6 {[%emt 0:00:31]} 10. O-O {[%emt 0:02:10] Black should prevent d5.} Nb4 {[%emt 0:03:04] B22: Sicilian: 2 c3.} (10... a6 $11 11. Bd3 Be7) 11. Qe2 {[%emt 0:18:42]} ({White should try} 11. Bg5 $16 Be7 12. Ne4) 11... a6 {[%emt 0:08:53]} 12. Bxd7+ {[%emt 0:01:01]} Qxd7 {[%emt 0:00:12] [#] The position is equal.} 13. Bf4 $146 {[%emt 0:05:40]} ({Predecessor:} 13. a3 N4d5 14. Ng5 Nxc3 15. bxc3 d5 16. Qh5 h6 17. f4 g6 18. Qh3 Rc8 19. g4 {0-1 Rosa Ramirez,V (1898)-Paarup,T (2046) Galapagar op 09th 2008 (3)}) 13... N4d5 {[%emt 0:10:29]} 14. Bg3 {[%emt 0:02:29]} Nxc3 {[%emt 0:02:57]} 15. bxc3 {[%emt 0:00:23][%cal Od4d5]} d5 {[%emt 0:00:09]} 16. Nd2 Rc8 {[%emt 0:00:30]} 17. Qd3 Nc4 {[%emt 0:00:30]} (17... Na4 $17 18. Rac1 b5) 18. f4 Nxd2 {[%emt 0:00:30]} (18... Nb2 $5 {[%cal Rb2d3]} 19. Qe3 Be7 $15) 19. Qxd2 Rc4 {[%emt 0:00:30]} 20. Rf3 Be7 {[%emt 0:00:30]} 21. Raf1 g6 {[%emt 0:00:30]} 22. Be1 h5 {[%emt 0:00:30]} 23. g3 b5 {[%emt 0:00:30]} 24. h3 Qc6 {[%emt 0:00:30]} 25. g4 hxg4 {[%emt 0:00:30]} 26. hxg4 b4 {[%emt 0:00:30]} 27. Qd3 bxc3 {[%emt 0:00:30]} 28. Bxc3 Kd7 {[%emt 0:00:30]} 29. f5 gxf5 {[%emt 0:00:30]} 30. gxf5 Rc8 {[%emt 0:00:30]} (30... Rg8+ $17 31. Kh2 Rc8) 31. fxe6+ Qxe6 {[%emt 0:00:30]} 32. Be1 Qg4+ {[%emt 0:00:30]} 33. Rg3 (33. Bg3 $142) 33... Qxd4+ $17 {[%emt 0:00:30]} 34. Qxd4 Rxd4 {[%emt 0:00:30]} 35. Rxf7 (35. Rg7 $17 {might work better.}) 35... Re4 {[%emt 0:00:30]} (35... Rd1 $19 {and Black stays clearly on top.} 36. Rf1 Rcc1 37. e6+ {[%mdl 64] Decoy} Kxe6 38. Re3+ Kd7) 36. Bc3 (36. Bf2 $17 {keeps fighting.}) 36... Ke6 $19 {[%emt 0:00:30]} 37. Rh7 d4 {[%emt 0:00:30]} 38. Ba5 (38. Bd2) 38... Rxe5 {[%emt 0:00:30]} ({Avoid the trap} 38... Rc1+ $2 39. Kg2 $19) 39. Bb6 Re2 {[%emt 0:00:30][%cal Rc8c1]} 40. Rf3 Rc1+ {[%emt 0:00:30]} (40... Rxa2 41. Bxd4 Bc5 42. Rh6+ Kd5 43. Bxc5 Rxc5 44. Rf2 Rc1+ 45. Kg2 $17) 41. Rf1 Rxf1+ {[%emt 0:30:30]} (41... Rc4 $19 {...d3 would be deadly.} 42. Rh6+ Kd5) 42. Kxf1 {[%mdl 4096] Endgame KRB-KRB} d3 {[%emt 0:00:30]} 43. Rh3 Rd2 $1 {[%emt 0:00:30] And now ...Kd5 would win.} ({And not} 43... Rxa2 44. Rxd3 Bd6 45. Rd4 $15) 44. Re3+ Kd7 {[%emt 0:00:30] Threatens to win with ...Bb4. Black is much more active.} 45. Ba5 {Prevents Bb4.} Rd1+ {[%emt 0:00:30]} ({Stronger than} 45... Rxa2 46. Rxd3+ Kc6 47. Rc3+ Kd7 48. Rd3+ Kc6 49. Be1 $15) 46. Re1 Rxe1+ {[%emt 0:00:30]} 47. Kxe1 $17 {KB-KB} Bg5 {[%emt 0:00:30]} 48. Bd2 Bh4+ {[%emt 0:00:30]} 49. Kd1 Kc6 {[%emt 0:00:30]} 50. Be3 Kd5 {[%emt 0:00:30]} 51. Kd2 Kc4 {[%emt 0:00:30]} 52. Kd1 Be7 {[%emt 0:00:30]} 53. Bc1 Kc3 {[%emt 0:00:30]} 54. Bh6 Ba3 {[%emt 0:00:30]} 55. Bd2+ Kc4 {[%emt 0:00:30]} 56. Bh6 Bb2 {[%emt 0:00:30]} 57. Bf8 a5 {[%emt 0:00:30]} 58. Be7 Bc3 {[%emt 0:00:30]} 59. Bf8 Kb5 {[%emt 0:00:30] ( -> ...Ka4)} 60. Ba3 $2 {[%mdl 8192] [#]} (60. Be7 $17 Ka4 61. Kc1) 60... Ka4 $1 {[%emt 0:00:30]} 61. Bc1 {[#]} Bb4 $2 {[%emt 0:00:30] Weighted Error Value: White=0.37/Black=0.20 (precise)} (61... Kb4 $1 {mates} 62. Bg5 Ka3 63. Bd2 Bxd2 64. Kxd2 Kxa2 65. Kxd3 Kb2 66. Ke2 a4 67. Kd2 a3 68. Ke3 a2 69. Kf2 a1=Q 70. Kg3 Kc3 71. Kg4 Kd4 72. Kf4 Qa5 73. Kf3 Qf5+ 74. Kg3 Ke3 75. Kh4 Qg6 76. Kh3 Kf3 77. Kh4 Qh6#) 0-1

[Event "39th OBSenEM 2023"]
[Site "Berlin"]
[Date "2023.01.31"]
[Round "8.1"]
[White "Daverkausen, Bernd"]
[Black "Hess, Christian"]
[Result "0-1"]
[ECO "A31"]
[WhiteElo "2120"]
[BlackElo "2215"]
[Annotator "TA"]
[PlyCount "54"]
[EventDate "2023.01.24"]
[EventType "swiss"]
[EventCountry "GER"]
[SourceTitle "playchess.com"]
[Source "ChessBase"]
[SourceQuality "1"]
[TimeControl "40/5400+30:1800+30"]

{[%evp 12,54,22,14,29,-14,-13,-23,-20,-4,-22,-16,-11,-14,-12,-20,-6,-8,-3,-43,-41,-61,-50,-64,-49,-38,-43,-82,-45,-88,-59,-77,-74,-134,-133,-134,-128,-135,-131,-184,-180,-197,-108,-450,-320]} 1. c4 {[%emt 0:00:05]} c5 {[%emt 0:00:54]} 2. Nf3 {[%emt 0:00:13]} Nc6 {[%emt 0:00:10]} 3. d4 {[%emt 0:00:14]} cxd4 {[%emt 0:00:06]} 4. Nxd4 {[%emt 0:00:07]} Qb6 {[%emt 0:01:33]} 5. Nb3 {[%emt 0:01:11]} Nf6 {[%emt 0:00:37]} 6. Nc3 {[%emt 0:00:33]} e6 {[%emt 0:00:54]} 7. e4 {[%emt 0:05:59]} Bb4 {[%emt 0:02:03] A31: Symmetrical English: 2 Nf3 Nf6 3 d4.} 8. Be3 {[%emt 0:03:09]} (8. Bd3 $5) 8... Qc7 {[%emt 0:00:58]} 9. Bd3 {[%emt 0:16:25]} d5 {[%emt 0:10:04] Black has an edge.} 10. cxd5 {[%emt 0:17:17]} exd5 {[%emt 0:00:29]} 11. exd5 {[%emt 0:00:21]} Nxd5 {[%emt 0:00:39]} 12. Bd2 {[%emt 0:00:57] [#]} (12. O-O {with more complications.} Nxe3 13. Re1 O-O 14. Rxe3 Be6 15. Ne4) 12... Qe5+ $146 {[%emt 0:20:24]} ({Predecessor:} 12... Nxc3 13. bxc3 Bd6 14. h3 Bd7 15. Qe2+ Ne7 16. O-O O-O-O 17. c4 Nc6 18. Rab1 Rde8 {½-½ Cantanhede,H-Borensztajn,D Rio de Janeiro Clube Naval op 2nd 1995 (9)}) 13. Qe2 $1 {[%emt 0:00:33]} Nxc3 {[%emt 0:01:47]} (13... Qxe2+ {simplifies} 14. Bxe2 Be6 15. O-O O-O-O) 14. bxc3 {[%emt 0:04:20]} Bd6 {[%emt 0:04:27]} (14... Qxe2+ {simplifies} 15. Bxe2 Ba3 16. O-O Bf5) 15. Rb1 {[%emt 0:09:40]} O-O {[%emt 0:03:56]} 16. Qxe5 {[%emt 0:00:39]} Nxe5 {[%emt 0:15:25]} 17. Be4 {[%emt 0:10:23]} Re8 {[%emt 0:01:20]} (17... Ng4 $5 {[%cal Rf8e8]} 18. O-O Re8 $17) 18. O-O {[%emt 0:04:34]} Ng4 {[%emt 0:05:32][%csl LRe4,LRh2]} 19. Bd5 {[%emt 0:00:08]} Bf5 $36 {[%emt 0:05:35][%mdl 2048] Black has some pressure. Black is more active.} ({Reject} 19... Nxh2 $6 20. Rfe1 Bf5 21. Rbd1 $11) 20. Rbd1 {[%emt 0:02:31]} Bxh2+ {[%emt 0:06:48]} 21. Kh1 {[%emt 0:00:07]} Bc7 {[%emt 0:00:43] [#] ...Bd3 is the strong threat.} 22. f3 {[%emt 0:07:04]} ({White should try} 22. Bxb7 Rab8 23. Ba6) 22... Ne3 $17 {[%emt 0:01:51]} 23. Bxe3 {[%emt 0:00:17]} Rxe3 {[%emt 0:00:04]} 24. Bxb7 {[%emt 0:00:15]} Rae8 {[%emt 0:02:03][%cal Of5d3] ...Bd3! would be deadly.} 25. g4 {[%emt 0:04:41]} (25. Bc6 $17 {is a better defense.} R8e7 26. Bb5) 25... Bd3 $19 {[%emt 0:01:27] A strong pair of Bishops.} 26. Rf2 {[%emt 0:00:17]} Bg3 {[%emt 0:06:10]} (26... Bc4 $19 27. Nd4 h5) 27. Bc6 $2 {[%emt 0:09:28][%mdl 8192] [#]} Re1+ {[%emt 0:03:36] Weighted Error Value: White=0.48/Black=0.10 (very precise)} 0-1

[Event "39th OBSenEM 2023"]
[Site "Berlin"]
[Date "2023.01.31"]
[Round "8.2"]
[White "Postler, Reinhard"]
[Black "Syre, Christian"]
[Result "1-0"]
[ECO "B32"]
[WhiteElo "2202"]
[BlackElo "2197"]
[Annotator "TA"]
[PlyCount "61"]
[EventDate "2023.01.24"]
[EventType "swiss"]
[EventCountry "GER"]
[SourceTitle "playchess.com"]
[Source "ChessBase"]
[SourceQuality "1"]
[TimeControl "40/5400+30:1800+30"]

{[%evp 21,61,31,75,22,50,59,70,60,158,69,129,128,155,147,143,123,124,104,210,176,149,87,170,177,242,206,260,222,292,274,281,273,526,420,507,474,633,633,614,582,628,608]} 1. e4 {[%emt 0:00:05]} c5 {[%emt 0:00:13]} 2. Nf3 {[%emt 0:00:34]} Nc6 {[%emt 0:00:16]} 3. d4 {[%emt 0:00:05]} cxd4 {[%emt 0:00:04]} 4. Nxd4 {[%emt 0:00:09]} e5 {[%emt 0:00:11]} 5. Nb5 {[%emt 0:00:18]} d6 {[%emt 0:00:11]} 6. N1c3 {[%emt 0:00:41]} a6 {[%emt 0:00:10]} 7. Na3 {[%emt 0:00:03]} b5 {[%emt 0:00:19]} 8. Nd5 {[%emt 0:00:41]} Nge7 {[%emt 0:00:06]} 9. c4 {[%emt 0:03:50]} Nd4 {[%emt 0:00:50]} 10. cxb5 {[%emt 0:02:10]} Nxd5 {[%emt 0:00:08]} 11. exd5 {[%emt 0:00:10]} Be7 {[%emt 0:00:28]} 12. Bc4 {[%emt 0:06:33] B32: Sicilian: Löwenthal and Kalashnikov Variations.} (12. Bd3 $16) 12... O-O {[%emt 0:01:26]} 13. O-O {[%emt 0:01:58]} Qb6 {[%emt 0:04:32][%cal Ra6b5]} 14. Be3 {[%emt 0:08:44] [#] White is slightly better.} Bd7 $146 {[%emt 0:00:08]} ({Better is} 14... g6 $14) ({Predecessor:} 14... Bf6 15. Qd2 axb5 16. Nxb5 Ba6 17. a4 Rfc8 18. b3 Bxb5 19. axb5 {1-0 Zanette,E (2115)-Nazaretyan,T (2316) Titled Tuesday intern op 02nd Aug Late blitz 2022 (1)}) 15. Nc2 {[%emt 0:01:51]} (15. bxa6 $16 {aiming for Nc2.} Bf6 16. Bd3) 15... Bf6 {[%emt 0:00:07]} ({Black should try} 15... Qc7 $14 16. Nxd4 exd4 17. Qxd4 axb5) 16. bxa6 $16 {[%emt 0:03:06]} Qxb2 {[%emt 0:00:52]} 17. Nxd4 {[%emt 0:16:07]} exd4 {[%emt 0:00:02]} 18. Rb1 {[%emt 0:04:21]} Qc3 {[%emt 0:00:32]} 19. Rc1 {[%emt 0:00:44]} Qb2 {[%emt 0:00:19]} (19... Qa3 $16 {might work better.} 20. Bxd4 Bxd4 21. Qxd4 Bc8) 20. Bd2 {[%emt 0:04:48] [#] And now Rb1 would win.} Bf5 {[%emt 0:32:45] Dodges Rb1} 21. Qf3 {[%emt 0:04:43]} (21. a4 $142) 21... Qxd2 {[%emt 0:03:12]} (21... Bc8 $16 22. Qd3 Qb6) 22. Qxf5 $18 {[%emt 0:00:08]} d3 {[%emt 0:12:27]} (22... Be5 $142 23. Rc2 Qa5) 23. Bxd3 {[%emt 0:01:51][%csl Gd3][%cal Rf5h7]} Qh6 {[%emt 0:00:03]} 24. Qe4 {[%emt 0:03:59]} Rfe8 {[%emt 0:00:28]} 25. Qa4 {[%emt 0:00:17]} Be5 {[%emt 0:02:30][%csl Ge5][%cal Rh6h2] [#]} 26. g3 {[%emt 0:00:10]} Bb2 $2 {[%emt 0:00:30]} (26... Qf6 {was called for.} 27. Rc4 g6) 27. Rc4 {[%emt 0:08:28][%cal Bc1c4,Bc4c7,Bc7d7][%mdl 32]} g6 {[%emt 0:05:36]} 28. Rc7 {[%emt 0:03:18] Against Re7. White is clearly winning.} Qg7 {[%emt 0:11:48]} 29. Bb5 {[%emt 0:00:30]} Rf8 {[%emt 0:05:30]} 30. Bc6 {[%emt 0:01:05]} Qc3 {[%emt 0:12:14]} 31. Rd7 {[%emt 0:01:38] Weighted Error Value: White=0.27 (precise) /Black=0.65} 1-0

[Event "39th OBSenEM 2023"]
[Site "Berlin"]
[Date "2023.01.31"]
[Round "8.3"]
[White "Kreutzkamp, Hans-Rudolf"]
[Black "Brustkern, Juergen"]
[Result "1/2-1/2"]
[ECO "B50"]
[WhiteElo "2094"]
[BlackElo "2182"]
[Annotator "TA"]
[PlyCount "98"]
[EventDate "2023.01.24"]
[EventType "swiss"]
[EventCountry "GER"]
[SourceTitle "playchess.com"]
[Source "ChessBase"]
[SourceQuality "1"]
[TimeControl "40/5400+30:1800+30"]

{[%evp 9,98,0,0,0,0,-15,-5,-10,27,-20,-23,-13,-2,-17,0,0,4,-4,0,0,0,-1,0,-72,-72,-81,-52,-68,-62,-94,-74,-91,-62,-73,-47,-128,-126,-129,-128,-143,-144,-137,-147,-193,-196,-185,-168,-170,-154,-216,-197,-243,-153,-153,-103,-138,-139,-120,-116,-115,-87,-144,-133,-116,-114,-214,-211,-195,-84,-174,-50,-56,-55,-60,-58,-50,-52,-58,-57,-125,-16,-19,0,0,0,0,0,0,0,0,8]} 1. e4 {[%emt 0:00:03]} c5 {[%emt 0:00:10]} 2. Nf3 {[%emt 0:00:06]} Nc6 {[%emt 0:00:05]} 3. b3 {[%emt 0:00:05]} d6 {[%emt 0:04:16]} 4. Bb2 {[%emt 0:00:27]} Nf6 {[%emt 0:00:21]} 5. Nc3 {[%emt 0:00:15]} e6 {[%emt 0:01:36]} 6. Be2 {[%emt 0:03:21] B50: Sicilian: 2...d6, Miscellaneous.} Be7 {[%emt 0:01:01]} 7. d4 {[%emt 0:01:26]} cxd4 {[%emt 0:01:30]} 8. Nxd4 {[%emt 0:00:14]} a6 {[%emt 0:01:06]} 9. O-O {[%emt 0:00:59]} (9. Nxc6 {deserves consideration.} bxc6 10. Qd3) 9... Bd7 $11 {[%emt 0:00:32]} 10. a4 {[%emt 0:02:31]} O-O {[%emt 0:01:56]} 11. Kh1 {[%emt 0:00:23] [#]} Qa5 $146 {[%emt 0:11:45]} ({Predecessor:} 11... Qc7 12. f4 Rfd8 13. Nf3 Rac8 14. Qe1 Nb4 15. Rc1 Bc6 16. e5 dxe5 17. fxe5 Nfd5 18. Nxd5 Bxd5 {1-0 Apicella,M (2520)-Bocharov,D (2452) Dos Hermanas Internet f 3rd 2002 (1.3)}) 12. f4 {[%emt 0:01:22]} Rac8 {[%emt 0:03:15]} 13. Bf3 {[%emt 0:07:47]} Nxd4 {[%emt 0:12:13]} 14. Qxd4 {[%emt 0:00:13]} e5 {[%emt 0:00:29]} 15. Qd3 {[%emt 0:05:26]} exf4 {[%emt 0:03:53]} 16. Nd5 {[%emt 0:00:55]} (16. Ne2 $11 {keeps the balance.}) 16... Nxd5 $17 {[%emt 0:00:11]} 17. exd5 {[%emt 0:00:08]} Qd8 18. c4 {[%emt 0:00:30]} Bf6 19. Rab1 {[%emt 0:00:30]} g6 20. Bxf6 {[%emt 0:00:30]} Qxf6 21. Be4 {[%emt 0:00:30]} Qe5 22. Qf3 {[%emt 0:00:30]} (22. Rbe1 $15 Qg5 23. Qd2) 22... Rce8 23. Bc2 {[%emt 0:00:30]} Qe2 24. Rf2 {[%emt 0:00:30]} Qxf3 25. Rxf3 {[%emt 0:00:30]} g5 26. a5 {[%emt 0:00:30]} (26. Kg1 $17) 26... Re2 $19 27. Bd3 {[%emt 0:00:30]} Rd2 {...Bg4 would be deadly.} 28. Bf1 {[%emt 0:00:30]} Re8 29. b4 {[%emt 0:00:30]} (29. Kg1 $17) 29... Bf5 30. Rc1 {[%emt 0:00:30]} (30. Ra1 $142) 30... Re3 31. Kg1 {[%emt 0:00:30]} Re7 (31... Kf8 $142 32. Rxe3 fxe3) 32. Rf2 {[%emt 0:00:30] [#]} Rd4 33. g3 {[%emt 0:00:30]} Rc7 34. gxf4 {[%emt 0:00:30]} gxf4 ({Of course not} 34... Rxf4 $6 35. Rxf4 gxf4 36. c5 $11) 35. Rf3 {[%emt 0:00:30]} ({Better is} 35. Rc3) 35... f6 {...Rg7+ is the strong threat.} 36. Rf2 {[%emt 0:00:30]} Kf8 37. Rb2 {[%emt 0:00:30]} (37. c5 $17) 37... Rxd5 {[%mdl 64] Pin} 38. Bg2 {[%emt 0:00:30]} Re5 (38... Rd4 $19 {and Black stays clearly on top. Threatens to win with ...d5.} 39. b5 Be6 40. Bxb7 Rxb7 41. bxa6 Re7 42. Rb8+ Kf7) 39. Rf1 {[%emt 0:00:30]} (39. Rd2 $17) 39... Be4 (39... Rxc4 $19 {White must now prevent ...d5.} 40. Bxb7 Bd3) 40. Rxf4 $15 {[%emt 0:00:30]} Rxc4 41. Bxe4 $1 {[%emt 0:30:30]} Rexe4 42. Rxf6+ {[%emt 0:00:30][%mdl 4096] Endgame KRR-KRR} Ke7 43. Rh6 {[%emt 0:00:30]} Rg4+ 44. Kf2 {[%emt 0:00:30] [#]} ({White should play} 44. Kf1 $1 $15) 44... Rcf4+ ({And not} 44... Rxb4 45. Rxh7+ Ke6 46. Rxb7 Rbf4+ 47. Ke3 $15) (44... Rh4 $1 $17 {[%cal Rh4h6]} 45. Rxh4 Rxh4) 45. Ke3 $11 {[%emt 0:00:30] The position is equal.} Rh4 46. Rxh7+ {[%emt 0:00:30][%mdl 64] Deflection} Rxh7 47. Kxf4 {[%emt 0:00:30]} Ke6 48. Kg5 {[%emt 0:00:30]} Rg7+ 49. Kf4 {[%emt 0:00:30]} Kf7 {Black had all chances to win.   Weighted Error Value: White=0.19 (very precise) /Black=0.20 (precise)} 1/2-1/2

[Event "39th OBSenEM 2023"]
[Site "Berlin"]
[Date "2023.01.31"]
[Round "8.4"]
[White "Mueller, Thomas"]
[Black "Vandre, Wolfgang"]
[Result "1-0"]
[ECO "A46"]
[WhiteElo "2025"]
[BlackElo "2112"]
[Annotator "TA"]
[PlyCount "71"]
[EventDate "2023.01.24"]
[EventType "swiss"]
[EventCountry "GER"]
[SourceTitle "playchess.com"]
[Source "ChessBase"]
[SourceQuality "1"]
[TimeControl "40/5400+30:1800+30"]

{[%evp 9,71,-4,12,24,33,22,35,10,22,0,0,13,12,13,20,11,51,50,52,56,64,65,66,75,125,131,131,124,122,77,71,0,0,0,442,414,515,527,482,458,483,-1,0,0,0,-11,-13,-14,1004,-370,-258,-652,-564,-483,0,0,0,0,0,0,0,0,868,851]} 1. d4 {[%emt 0:01:11]} Nf6 {[%emt 0:00:27]} 2. Nf3 {[%emt 0:00:04]} e6 {[%emt 0:00:48]} 3. Bg5 {[%emt 0:01:08]} h6 {[%emt 0:02:09]} 4. Bh4 {[%emt 0:00:10]} d6 {[%emt 0:01:12]} 5. c4 {[%emt 0:05:10]} Nbd7 {[%emt 0:03:15]} (5... g5 $5 6. Bg3 $8 Ne4 $11) 6. Nc3 {[%emt 0:07:11] A46: 1 d4 Nf6 2 Nf3 e6: Torre, London and Colle Systems.} g5 {[%emt 0:00:58]} 7. Bg3 {[%emt 0:00:04]} Nh5 {[%emt 0:00:21]} 8. e3 {White is slightly better.} Bg7 {[%emt 0:00:30]} 9. Nd2 Nxg3 {[%emt 0:00:30]} 10. hxg3 Qe7 {[%emt 0:00:30]} 11. Be2 a6 {[%emt 0:00:30]} 12. Qc2 {[#]} c5 $146 {[%emt 0:00:30]} ({Predecessor:} 12... c6 13. g4 c5 14. dxc5 dxc5 15. O-O-O Ne5 16. Nde4 O-O 17. Rh5 b5 18. f4 Ng6 19. fxg5 hxg5 20. Nxg5 {1-0 Medancic,R (2247)-Kovacevic,B (2457) CRO-chT1B Sibenik 2007 (3)}) 13. dxc5 Nxc5 {[%emt 0:00:30]} 14. Rd1 O-O {[%emt 0:00:30]} 15. b4 Nd7 {[%emt 0:00:30][%cal Od6d5]} 16. Nde4 {[%mdl 64] Discovered Attack. White is more active.} d5 {[%emt 0:00:30]} 17. cxd5 $16 Qxb4 {[%emt 0:00:30] [#]} 18. dxe6 $1 fxe6 {[%emt 0:00:30]} 19. Kf1 {[%cal Oe4g5]} Rf7 {[%emt 0:00:30]} 20. Bg4 (20. Bh5 $16 Re7 21. Na4) 20... Nf8 $11 {[%emt 0:00:30]} 21. Rd8 $40 {[%cal Oe4g5][%mdl 128] aiming for Nxg5! White is up to no good.} Bxc3 $4 {[%emt 0:00:30][%mdl 8192]} (21... Rc7 $11 {and Black is okay.}) 22. Nxc3 $18 {Qg6+ is the strong threat.} (22. Qxc3 Qxc3 23. Nxc3 Rc7 $14) 22... Qxg4 {[%emt 0:00:30]} 23. Qg6+ (23. Rxh6 Kg7 24. Rxf8 Kxf8 $11) 23... Rg7 {[%emt 0:00:30]} 24. Qxh6 {White wants to mate with Qh8+.} Qb4 {[%emt 0:00:30] [#]} 25. Ne4 $2 Qb1+ {[%emt 0:00:30]} (25... Qxe4 $2 26. Qh8+ Kf7 27. Rxf8+ Ke7 28. Qxg7+ $18) 26. Ke2 {Intending Qh8+ and mate. Chess con chili.} Qb5+ {[%emt 0:00:30]} 27. Ke1 (27. Rd3 $5 Nh7 28. a4 $11) 27... Qa5+ {[%emt 0:00:30]} 28. Rd2 {Qh8+ would kill now.} Bd7 $2 {[%emt 0:00:30][%mdl 8192]} (28... Nh7 $11 29. Rh5 Bd7 30. Nxg5 Nxg5 31. Qh8+ Kf7 32. Qxa8 Qc7) 29. Nf6+ $4 {[%mdl 8192]} (29. Qh8+ $18 {was the only winning move.} Kf7 30. Nd6+ Kf6 31. Rh6+ (31. Nxb7 Qe5 $11) 31... Ng6 32. Qxa8) 29... Kf7 $19 {[%emt 0:00:30]} 30. Ng4 $2 (30. Ne4 Qe5 31. Rd4) 30... Qc3 {[%emt 0:00:30]} 31. f4 Rh7 $2 {[%emt 0:00:30]} (31... Rc8 $19 32. Ne5+ (32. fxg5 $2 Ng6 $19) 32... Ke8 33. Qh5+ (33. Qxg7 $2 Qxe3+ 34. Kf1 Rc1+ {[%mdl 64] Skewer}) 33... Ke7 34. Nxd7 Nxd7) 32. Qxh7+ $11 Nxh7 {[%emt 0:00:30]} 33. Rxh7+ Kg6 {[%emt 0:00:30]} ({Don't play} 33... Ke8 34. Rhxd7 Rc8 35. Ke2 $16 (35. fxg5 Rc7 $11)) 34. Rhxd7 {Kf2 would be deadly.} Kf5 {[%emt 0:00:30]} 35. Nh6+ Ke4 $2 {[%emt 0:00:30][%mdl 8192]} (35... Kg6 $11 36. Ng4 gxf4 37. gxf4 Kh5) 36. R7d4+ {A fantastic game!   Weighted Error Value: White=0.67/Black=0.64} (36. Rxb7 $2 {perishes.} Rd8 37. Rbb2 Rxd2 38. Rxd2 gxf4 39. gxf4 Qg7 $19) 1-0

[Event "39th OBSenEM 2023"]
[Site "Berlin"]
[Date "2023.02.01"]
[Round "9.1"]
[White "Hess, Christian"]
[Black "Mueller, Thomas"]
[Result "1-0"]
[ECO "E92"]
[WhiteElo "2215"]
[BlackElo "2025"]
[Annotator "TA"]
[PlyCount "55"]
[EventDate "2023.01.24"]
[EventType "swiss"]
[EventCountry "GER"]
[SourceTitle "playchess.com"]
[Source "ChessBase"]
[SourceQuality "1"]
[TimeControl "40/5400+30:1800+30"]

{[%evp 16,55,46,36,147,140,147,155,141,145,227,228,211,219,288,238,285,290,334,329,329,336,343,327,387,333,403,385,394,343,379,380,398,391,392,383,368,352,343,249,572,556]} 1. Nf3 {[%emt 0:00:14] Tsesarsky,Ilya} Nf6 {[%emt 0:00:15]} 2. c4 {[%emt 0:00:41]} g6 {[%emt 0:00:11]} 3. Nc3 {[%emt 0:00:21]} Bg7 {[%emt 0:00:41]} 4. d4 {[%emt 0:00:38]} d6 {[%emt 0:01:38]} 5. e4 {[%emt 0:00:42]} O-O {[%emt 0:01:40]} 6. Be2 {[%emt 0:01:36]} e5 {[%emt 0:05:16]} 7. Be3 {[%emt 0:01:17][%cal Bc1e3,Be3g5,Bg5h4][%mdl 32]} Ng4 {[%emt 0:09:37]} 8. Bg5 {[%emt 0:01:11]} f6 {[%emt 0:07:27]} 9. Bh4 {[%emt 0:00:30]} Nh6 {[%emt 0:02:35] E92: King's Indian: Classical: 6 Be2 e5: 7 dxe5, 7 Be3 and Petrosian System without 7...Nbd7.} (9... Nc6 $14) 10. dxe5 $16 {[%emt 0:06:08] White is more active.} dxe5 {[%emt 0:00:55]} 11. Qxd8 {[%emt 0:00:27][%mdl 64] Remove Defender} Rxd8 {[%emt 0:00:05] [#] White is clearly better.} 12. Nd5 $1 {[%emt 0:00:58]} g5 {[%emt 0:01:34]} (12... Nd7 $16 {keeps fighting.}) 13. Nxc7 $18 {[%emt 0:04:15]} gxh4 {[%emt 0:01:53]} 14. Nxa8 {[%emt 0:00:17][%cal Oa8c7] [#]} h3 $146 {[%emt 0:03:44]} ({Predecessor:} 14... Na6 15. c5 Nxc5 16. Nc7 Nxe4 17. O-O Nf5 18. Rfd1 Rf8 19. Bc4+ Kh8 20. Ne6 Re8 {1-0 Gelfand,B (2695)-Polgar,J (2718) George Marx m rapid 2003 (5)}) 15. O-O {[%emt 0:07:27]} Nc6 {[%emt 0:01:38]} 16. Rad1 {[%emt 0:13:57]} Nd4 {[%emt 0:00:27]} 17. Nxd4 {[%emt 0:00:25]} exd4 {[%emt 0:00:01]} 18. Nc7 {[%emt 0:03:43]} f5 {[%emt 0:02:01]} 19. Bd3 {[%emt 0:07:29]} (19. gxh3 fxe4 20. Rfe1 Bxh3 $16) 19... Ng4 {[%emt 0:04:13]} 20. Nd5 {[%emt 0:13:38]} (20. gxh3 Ne5 21. exf5 Nxd3 $18) 20... Kf7 {[%emt 0:03:42]} 21. exf5 {[%emt 0:02:33]} ({Resist} 21. gxh3 Ne5 22. f3 Rd6 $18) 21... hxg2 {[%emt 0:05:18]} 22. Kxg2 {[%emt 0:00:26]} b5 {[%emt 0:02:16]} 23. Rfe1 {[%emt 0:01:39] Re7+ would be deadly.} Ne5 {[%emt 0:02:40]} 24. b3 {[%emt 0:06:17]} Bb7 {[%emt 0:03:56]} 25. Be4 {[%emt 0:00:44]} bxc4 {[%emt 0:01:05]} 26. bxc4 {[%emt 0:00:07]} (26. Rxd4 Nd3 27. Bxd3 (27. Rxc4 $2 Nxe1+ 28. Kf1 Bxd5 $19) 27... cxd3 28. Rxd3 (28. Re7+ Kf8 $17) 28... Rxd5 29. Rxd5 Bxd5+ 30. f3 Kf6 $16) 26... Nxc4 {[%emt 0:00:42]} 27. f6 {[%emt 0:00:52][%cal Bf5f6,Bf6g7][%mdl 96] [#] Discovered Attack} Rxd5 $2 {[%emt 0:02:21]} (27... Bh6 28. Nf4 (28. Rxd4 Nb6 $18) 28... Bxf4) 28. fxg7 {[%emt 0:01:43] Black did not feel at home in the position after the opening.   Weighted Error Value: White=0.17 (very precise) /Black=0.58} 1-0